Cogmind - Beta 10 @@@ ROGUE MODE // 2020.09.20 @ 12:01:43 Player: Llandrysgryf Result: Destroyed by G-47 Trooper with Particle Gun Performance ------------- Evolutions (0) 0 Regions Visited (1) 200 Robots Destroyed (19) 95 Value Destroyed (567) 567 Prototype IDs (2) 40 Alien Tech Used (0) 0 Bonus (0) 0 TOTAL SCORE: 902 Bonus ------- None Cogmind --------- Core Integrity 0/250 Matter 179/300 Energy 125/125 System Corruption 0% Temperature Cool (117) Movement Walking (180) Ox2 Location -10/Materials Parts ------- > --- POWER (1) -------- Light Ion Engine > --- PROPULSION (2) --- Aluminum Leg Aluminum Leg > --- UTILITY (2) ------ Medium Storage Unit High-capacity Storage Unit > --- WEAPON (2) ------- Improved Light Cannon Improved Light Cannon > --- INVENTORY (16) --- Ion Engine Light Ion Engine Light Treads Light Treads Aluminum Leg Aluminum Leg Aluminum Leg Aluminum Leg Aluminum Leg Medium Matter Pod (0) Weight Redist. System Light Assault Rifle Improved Light Cannon Improved Light Cannon Grenade Launcher Maul Peak State ------------ > --- POWER ------------ Light Ion Engine > --- PROPULSION ------- Aluminum Leg Aluminum Leg > --- UTILITY ---------- Medium Storage Unit High-capacity Storage Unit > --- WEAPON ----------- Improved Light Cannon Improved Light Cannon > --- INVENTORY -------- Ion Engine Light Ion Engine Light Treads Light Treads Aluminum Leg Aluminum Leg Aluminum Leg Aluminum Leg Aluminum Leg Medium Matter Pod Weight Redist. System Light Assault Rifle Improved Light Cannon Improved Light Cannon Grenade Launcher Maul [Rating: 11] Favorites ----------- Power Light Ion Engine Engine Light Ion Engine Power Core Light Nuclear Core Propulsion Aluminum Leg Leg Aluminum Leg Utility High-capacity Storage Unit Storage High-capacity Storage Unit Weapon Light Assault Rifle Energy Gun Backup Laser I Ballistic Gun Light Assault Rifle Ballistic Cannon Improved Light Cannon Impact Weapon Maul Build | -11 -10 ------- Run | Scr Mat Slots Evolved . | . . Power . | . . Propulsion . | . . Utility . | . . Weapon . | . . Parts Attached 27 | 6 21 Power 6 | 1 5 Engine 5 | 1 4 Core 1 | . 1 Reactor . | . . Propulsion 7 | 2 5 Treads . | . . Leg 7 | 2 5 Wheel . | . . Hover . | . . Flight . | . . Utility 3 | 1 2 Device . | . . Storage 3 | 1 2 Processor . | . . Hackware . | . . Protection . | . . Artifact . | . . Weapon 11 | 2 9 Energy Gun . | . . Energy Cannon . | . . Ballistic Gun 6 | 2 4 Ballistic Cannon 3 | . 3 Launcher . | . . Special Weapon . | . . Impact Weapon 2 | . 2 Slashing Weapon . | . . Piercing Weapon . | . . Special Melee Weapon . | . . Unidentified Prototypes . | . . Parts Lost 11 | . 11 Power 4 | . 4 Propulsion 3 | . 3 Utility . | . . Weapon 4 | . 4 Highest Loss Streak 5 | . 5 Average Slot Usage (%) 92 | . 92 Engine 12 | . 12 Leg 27 | . 27 Storage 25 | . 25 Energy Gun 2 | . 2 Ballistic Gun 11 | . 11 Ballistic Cannon 6 | . 6 Impact Weapon 3 | . 3 Naked Turns . | . . Heaviest Build 51 | 9 51 Greatest Support 20 | 20 20 Greatest Overweight (x) 4 | . 4 Average Overweight (x) 1 | . 1 Largest Inventory Capacity 16 | 6 16 Average Capacity 13 | 5 13 Most Carried 16 | 6 16 Average Carried 10 | 2 10 Final Capacity 16 | 6 16 Final Carried 16 | 4 16 Class Distribution -------------------- 66% | Mutant 33% | Scavenger-Mutant Dominant Class ---------------- Mutant | -10/Materials Resources | -11 -10 ----------- Run | Scr Mat Matter Collected 602 | 215 387 Remotely . | . . Salvage Created 599 | . 599 Parts 31 | . 31 Haulers Intercepted . | . . Recyclers Shooed . | . . Parts Field Recycled . | . . Retrieved Matter . | . . Parts Self-Destructed . | . . Prevented . | . . Kills | -11 -10 ------- Run | Scr Mat Combat Hostiles Destroyed 18 | . 18 Melee 2 | . 2 Guns 11 | . 11 Cannons 5 | . 5 Classes Destroyed 3 | . 3 Watcher 1 | . 1 Swarmer 5 | . 5 Grunt 13 | . 13 Best Kill Streak 3 | . 3 Combat Bots Only 3 | . 3 Max Kills in Single Turn 1 | . 1 Gunslinging . | . . Exploded . | . . Melee 1 | . 1 Uniques/NPCs Destroyed . | . . Combat | -11 -10 -------- Run | Scr Mat Damage Taken 1520 | . 1520 Core 253 | . 253 Absorbed by Shields . | . . Core Remaining (%) 100 | 100 . Volleys Fired 68 | . 68 Largest 2 | . 2 Hottest 78 | . 78 Shots Fired 107 | . 107 Gun 60 | . 60 Cannon 47 | . 47 Launcher . | . . Special . | . . Kinetic 107 | . 107 Thermal . | . . Explosive . | . . Electromagnetic . | . . Robot Hit Streak 6 | . 6 Robot Miss Streak 6 | . 6 Penetration Max . | . . Secondary Targets 1 | . 1 Max Gunslinging Chain 1 | . 1 Shots Hit Robots 68 | . 68 Core Hits 27 | . 27 Critical Hits 1 | . 1 Critical Kills 1 | . 1 Critical Parts Destroyed . | . . Melee Attacks 14 | . 14 Impact 14 | . 14 Slashing . | . . Piercing . | . . Sneak Attacks . | . . Combat Hostiles . | . . Follow-up Attacks . | . . Damage Inflicted 1029 | . 1029 Guns 419 | . 419 Cannons 389 | . 389 Explosions . | . . Melee 214 | . 214 Ramming 7 | . 7 Kinetic 808 | . 808 Thermal . | . . Explosive . | . . Electromagnetic . | . . Impact 214 | . 214 Slashing . | . . Piercing . | . . Highest Corruption . | . . Average Corruption . | . . Corruption Purged . | . . Overload Shots . | . . Overflow Damage 14 | . 14 Projectiles 4 | . 4 Explosions . | . . Melee 10 | . 10 Knockbacks 8 | . 8 Impact 1 | . 1 Kinetic 7 | . 7 Secondary . | . . Self-Inflicted Damage . | . . Shots . | . . Rammed . | . . Targets Rammed 1 | . 1 Kicked 1 | . 1 Crushed . | . . Highest Temperature 210 | . 210 Average Temperature 54 | . 54 Received Heat Transfer 555 | . 555 Siege Activations . | . . Robots Corrupted . | . . Combat Hostiles . | . . Parts Fried 2 | . 2 Impact Corruptions 1 | . 1 Robots Melted . | . . Combat Hostiles . | . . Parts Melted . | . . Heat Transferred . | . . Parts Sabotaged . | . . Parts Stolen . | . . Parts Stripped . | . . Power Chain Reactions . | . . Missiles Intercepted . | . . Alert | -11 -10 ------- Run | Scr Mat Peak Influence 249 | . 249 Initial . | . . Average 96 | . 101 Maximum Alert Level 1 | . 1 Low Security (%) 89 | 100 88 Level 1 10 | . 11 Level 2 . | . . Level 3 . | . . Level 4 . | . . Level 5 . | . . High Security . | . . Max Security . | . . Squads Dispatched 3 | . 3 Investigation 1 | . 1 Extermination . | . . Reinforcement 2 | . 2 Assault . | . . Garrison . | . . Intercept . | . . Construction Impeded . | . . Haulers Reinforced . | . . Stealth | -11 -10 --------- Run | Scr Mat Distress Signals . | . . Communications Jammed . | . . Distress Signals . | . . Times Spotted 40 | . 40 Peak Tracking Total 4 | . 4 Tactical Retreats 3 | . 3 Traps | -11 -10 ------- Run | Scr Mat Traps Triggered 1 | . 1 Indirectly . | . . Trap Hack Attempts . | . . Triggered . | . . Disarmed . | . . Reprogrammed . | . . Reused . | . . Traps Extracted . | . . Installed . | . . Triggered . | . . Machines | -11 -10 ---------- Run | Scr Mat Machines Disabled 2 | . 2 Max in Single Turn 1 | . 1 Machines Sabotaged . | . . Garrisons Compromised . | . . Overloaded Fab Kills . | . . Fab Network Shutdowns . | . . Hacking | -11 -10 --------- Run | Scr Mat Machines Accessed 3 | . 3 Terminals 1 | . 1 Fabricators . | . . Repair Stations 1 | . 1 Recycling Units 1 | . 1 Scanalyzers . | . . Garrison Access . | . . Total Hacks 8 | . 8 Successful 5 | . 5 Failed 3 | . 3 Catastrophic . | . . Database Lockouts . | . . Manual . | . . Terminals 5 | . 5 Fabricators . | . . Repair Stations 2 | . 2 Recycling Units 1 | . 1 Scanalyzers . | . . Garrison Access . | . . Terminal Hacks 3 | . 3 Prototype ID Bank 1 | . 1 Dispatch Records 1 | . 1 Transport Status 1 | . 1 Fabricator Hacks . | . . Repair Station Hacks 1 | . 1 Refit 1 | . 1 Recycling Unit Hacks 1 | . 1 Report Inventory 1 | . 1 Scanalyzer . | . . Garrison Access Hacks . | . . Unauthorized Hacks . | . . Terminals . | . . Fabricators . | . . Repair Stations . | . . Recycling Units . | . . Scanalyzers . | . . Garrison Access . | . . Data Cores Recovered . | . . Used . | . . Hacking Detections 1 | . 1 Full Trace Events 1 | . 1 Feedback Events . | . . Feedback Blocked . | . . Robot Schematics Acquired . | . . Robots Built . | . . Matter . | . . Time . | . . Total Robot Build Rating . | . . Part Schematics Acquired . | . . Parts Built . | . . Matter . | . . Time . | . . Total Part Build Rating . | . . Parts Repaired . | . . Time . | . . Parts Recycled . | . . Recycled Matter . | . . Retrieved Matter . | . . Retrieved Components . | . . Parts Scanalyzed . | . . Part Schematics Acquired . | . . Parts Damaged . | . . Bothacking | -11 -10 ------------ Run | Scr Mat Used RIF Installer . | . . Robots Hacked . | . . Non-combat . | . . Combat . | . . Robot Hacks Applied . | . . Relay Couplers Released . | . . Robots Rewired . | . . Allies Hacked . | . . Hacks Repelled . | . . Allies | -11 -10 -------- Run | Scr Mat Total Allies . | . . Largest Group . | . . Highest-Rated Group . | . . Highest-Rated Ally . | . . Total Orders . | . . Ally Attacks . | . . Total Damage . | . . Kills . | . . Allies Corrupted . | . . Allies Melted . | . . Intel | -11 -10 ------- Run | Scr Mat Robot Analysis Total . | . . Derelict Logs Recovered . | . . Drone Launches . | . . Drone Recoveries . | . . Exploration | -11 -10 ------------- Run | Scr Mat Turns Passed 1391 | 70 1321 Spaces Moved 691 | 51 640 Core 9 | 9 . Treads . | . . Legs 682 | 42 640 Wheels . | . . Hover . | . . Flight . | . . Fastest Speed 50 | 50 120 Average Speed 159 | 107 163 Slowest Speed 240 | 120 240 Overloaded Moves . | . . Propulsion Burnouts . | . . Robots Hopped . | . . Cave-ins Triggered . | . . Exploration Rate (%) 43 | 4 82 Regions Visited 1 Branch Regions . Pre-discovered Areas . | . . Known Exits Taken . | . . Unknown Exits Taken 1 | 1 . Scrap Searched . | . . Spaces Dug . | . . Terrain Destroyed 3 | . 3 Melee . | . . Projectile 3 | . 3 AOE . | . . Terrain Rammed . | . . Walls Destroyed . | . . Machines Disabled . | . . Actions | -11 -10 --------- Run | Scr Mat Total 849 | 66 783 Wait 5 | . 5 Move 690 | 50 640 Hop . | . . Pick Up 38 | 10 28 Fast Attach 1 | . 1 Attach 16 | 6 10 Detach . | . . Swap 10 | . 10 Drop 6 | . 6 Fire 68 | . 68 Melee 14 | . 14 Ram . | . . Kick 1 | . 1 Crush . | . . Escape Stasis . | . . Rewire . | . . Trap . | . . Miscellaneous . | . . Route ------- -11/Scrapyard -10/Materials (discovered 4 exits: [*Mat x2] / [*Min x2]) History --------- Turn | Location | Event 4 | -11/Scrapyard | Discovered new exit (range 15) 71 | -11/Scrapyard | Entered Materials 190 | -10/Materials | Discovered new exit (range 15) 300 | -10/Materials | Build established: Mutant 432 | -10/Materials | Core integrity fell below 50% 471 | -10/Materials | Lost 5 parts (2p2n1w) 611 | -10/Materials | Lost 3 parts (1p2w) 718 | -10/Materials | Core integrity fell below 20% 804 | -10/Materials | Discovered new exit (range 7) 837 | -10/Materials | Discovered new exit (range 14) 962 | -10/Materials | Build established: Scavenger-Mutant 1033 | -10/Materials | Discovered new exit (range 15) 1392 | -10/Materials | Destroyed by G-47 Trooper with Particle Gun Last Messages --------------- 01202_ K-01 Serf cleans the Fusion Modulator. 01214_ O-16 Technician: "IFF HANDSHAKE FAILED. SECURING TERMINAL." 01218_ ALERT: Hostiles spotted, dispatching reinforcements to Terminal M001. 01315_ G-34 Mercenary knocked back. 01315_ G-34 Mercenary suffers critical hit. 01315_ G-34 Mercenary destroyed. 01318_ G-34 Mercenary knocked back. 01324_ Terminal disabled. 01325_ U-05 Engineer builds a Door. 01330_ Destroyed Sml. Laser. 01337_ K-01 Serf collects debris. 01340_ U-05 Engineer builds a Wall. 01341_ K-01 Serf collects debris. 01341_ Acquired 33 matter. 01343_ K-01 Serf cleans the Fusion Modulator. 01347_ K-01 Serf collects debris. 01386_ U-05 Engineer lays Concrete. 01387_ G-34 Mercenary destroyed. 01388_ U-05 Engineer lays Concrete. Map ----- +----------------------------------------------------+ | #???# """ """ # # """" """" ## """ # #?? | | #???# # # ## """"" # #?? | | #???# + + % ## """"" + #?? | | ##??# """T""" # # ## """"" # #?? | | #??############# ############## """ # #?? | | #?????????????# "#?????????# # #?? | | #???########??# ""#?????????# # #?? | | #?### ! = #??# !#?????????########### ### | | ### + #??# < ""#????????##########?# # | | ## # """ #??# !!#????????# """ #?# # | | ## # R" #??# ""#????????# "Y" #?# # | | + """ #??# "#????????# #?# # | | #### #??## ####????????# #?# # | | #??############ ############# #?# # | | ###?????????#! # # """ #?# + | | #???????????#!! # """ # """ #?# # | | #???????????#]] # """"" # """ #?# # | | #???????????#]] # """"" # ### ### | | #???????????#=[= # """"" #####/##### #? | | ????????????# + """ #### #? | | ????????????##### # + #? | | ???????????????## g################ """ ## | | ???????????????# ############### = """ | | ?????????? # u """ | | ?????????? a g w "T | | ?????????? ; !% u @ """ | | ?????????????? # * #;;#########+##########+##### | | ????????????? ?## ##? ???# # #? | | ???????????? ??# #??? ???# | # #? | | ???????????? ???# #???????# # ! #? | | ???????????##???# #???????# # #? | | ????????????????# #???????#####################? | | ????????????????#####????????????????????????????? | | ?????????????????????????????????????????????????? | | ?????????????????????????????????????????????????? | | ?????????????????????????????????????????????????? | | ?????????????????????????????????????????????????? | | ?????????????????????????????????????????????????? | | ?????????????????????????????????????????????????? | | ?????????????????????????????????????????????????? | | ?????????????????????????????????????????????????? | | ?????????????????????????????????????????????????? | | ?????????????????????????????????????????????????? | | ?????????????????????????????????????????????????? | | ?????????????????????????????????????????????????? | | ?????????????????????????????????????????????????? | | | | | | | | | +----------------------------------------------------+ Best States ------------- Heat Dissipation 25 Energy Generation 14 Energy Capacity 160 Matter Stores 300 Matter Capacity 300 Sight Range 16 Terrain Scan Density 10 Evasion (%) 40 Item Schematics ----------------- None Robot Schematics ------------------ None Fabricated ------------ Nothing Alien Tech Used ----------------- None Achievements -------------- None Challenges ------------ None Game ------ Seed SwordStorageTriangulator Manual? 0 Play Time 00:23:40 Cumulative 6.8 hours Start 2020.09.20 @ 11:40:01 End 2020.09.20 @ 12:01:43 Sessions 1 Manual Loads 0 Difficulty Rogue Special Mode None Game No. 6 Rogue 6 Adventurer 0 Explorer 0 Win Type - Total 0 Types 0/0/0/0/0/0/0/0/0 Lore% 2 Gallery% 8 Achievement% 7 Wizard Run 0 Options --------- ASCII 0 Keyboard 0 Movement Numpad Keybinds 0 Fullscreen 1 Font 36/Smallcaps Map View 76x50 Tactical HUD 1 Map Filters NONE Filters NONE Steam 1 RUN: a1a0527b-934e-43fc-9111-fcb627a45806